lending/lending_fUSD_20241214
["ID","MTS","AMOUNT","RATE_DAILY","PERIOD"]
[345356388,1734180639594,-5000.0,0.00024702,2]
[345356389,1734180639605,-5000.0,0.0002473,2]
[345356390,1734180639618,-5000.0,0.00024778,2]
[345356391,1734180639627,-176.34215265,0.00024789,2]
[345356392,1734180639637,-25000.0,0.00024794,2]
[345356393,1734180639647,-5000.0,0.00024819,2]
[345356394,1734180639656,-1263.0,0.00024826,2]
[345356395,1734180639666,-498.522,0.00024826,2]
[345356396,1734180639675,-1254.0,0.00024826,2]
[345356397,1734180639686,-817.0,0.00024826,2]
[345356398,1734180639695,-150.0,0.00024826,2]
[345356399,1734180639705,-150.0,0.00024826,2]
[345356401,1734180639714,-5000.0,0.00024833,2]
[345356402,1734180639724,-5000.0,0.00024837,2]
[345356403,1734180639734,-878.44,0.00024839,2]
[345356404,1734180639743,-587.0,0.00024847,2]
[345356405,1734180639753,-5000.0,0.00024885,2]
[345356406,1734180639767,-1628.5,0.00024892,2]
[345356407,1734180639778,-5000.0,0.00024899,2]
[345356408,1734180639787,-192.23913217,0.000249,7]
[345356409,1734180639796,-25000.0,0.00024903,2]
[345356410,1734180639806,-5000.0,0.00024906,2]
[345356411,1734180639816,-7396.5,0.0002492,2]
[345356412,1734180639825,-2500.0,0.00024928,2]
[345356413,1734180639835,-25000.0,0.00024942,2]
[345356414,1734180639844,-2427.57,0.00024947,2]
[345356415,1734180639854,-25000.0,0.00024949,2]
[345356416,1734180639863,-4268.43,0.00024952,2]
[345356417,1734180639873,-2544.02,0.00024952,2]
[345356418,1734180639882,-5000.0,0.00024966,2]
[345356419,1734180639892,-500.0,0.00024999,3]
[345356420,1734180639901,-500.0,0.00024999,3]
[345356421,1734180639910,-500.0,0.00024999,3]
[345356422,1734180639919,-500.0,0.00024999,3]
[345356423,1734180639928,-517.09,0.00024999,3]
[345356424,1734180639938,-571.5,0.00024999,3]
[345356425,1734180639947,-500.0,0.00024999,3]
[345356426,1734180639956,-500.0,0.00024999,3]
[345356427,1734180639966,-500.0,0.00024999,3]
[345356428,1734180639975,-268.68884478,0.00024999,3]
[345356429,1734180639984,-500.0,0.00024999,3]
[345356430,1734180639994,-500.0,0.00024999,3]
[345356431,1734180640004,-500.0,0.00024999,3]
[345356432,1734180640017,-381.73956209,0.00024999,3]
[345356433,1734180640026,-500.0,0.00024999,3]
[345356434,1734180640035,-500.0,0.00024999,3]
[345356435,1734180640044,-500.0,0.00024999,3]
[345356436,1734180640053,-500.0,0.00024999,3]
[345356437,1734180640062,-500.0,0.00024999,3]
[345356438,1734180640072,-176.0,0.00025,2]
[345356439,1734180640081,-37245.68,0.00025,2]
[345356440,1734180640090,-150.0,0.00025,2]
[345356441,1734180640099,-177.0,0.00025,2]
[345356442,1734180640108,-292.84,0.00025128,2]
[345356443,1734180640118,-150.0,0.00025164,2]
[345356444,1734180640127,-1345.23,0.000252,31]
[345356445,1734180640135,-1345.23,0.000252,31]
[345356446,1734180640144,-1345.23,0.000252,31]
[345356447,1734180640154,-1345.23,0.000252,31]
[345356450,1734180640312,-1345.23,0.000252,31]
[345356451,1734180640322,-1345.23,0.000252,31]
[345356452,1734180640331,-1345.23,0.000252,31]
[345356453,1734180640340,-1345.23,0.000252,31]
[345356454,1734180640349,-1345.23,0.000252,31]
[345356455,1734180640359,-1345.23,0.000252,31]
[345356456,1734180640368,-1345.23,0.000252,31]
[345356457,1734180640378,-1345.23,0.000252,31]
[345356458,1734180640387,-1345.23,0.000252,31]
[345356459,1734180640397,-1345.23,0.000252,31]
[345356460,1734180640406,-1345.23,0.000252,31]
[345356461,1734180640415,-1345.23,0.000252,31]
[345356462,1734180640424,-1345.23,0.000252,31]
[345356463,1734180640434,-1345.23,0.000252,31]
[345356464,1734180640443,-1345.23,0.000252,31]
[345356465,1734180640452,-1345.23,0.000252,31]
[345356466,1734180640461,-1345.23,0.000252,31]
[345356467,1734180640470,-1345.23,0.000252,31]
[345356468,1734180640480,-1345.23,0.000252,31]
[345356469,1734180640489,-1345.23,0.000252,31]
[345356470,1734180640498,-280.0,0.000253,10]
[345356471,1734180640508,-150.0,0.00025364,2]
[345356472,1734180640521,-600.0,0.00025366,7]
[345356473,1734180640530,-422.88676179,0.00025366,7]
[345356474,1734180640539,-315.0,0.00025397,2]
[345356475,1734180640549,-176.34215265,0.00025411,2]
[345356476,1734180640558,-150.0,0.00025433,2]
[345356477,1734180640567,-182.2,0.00025481,30]
[345356478,1734180640576,-500.0,0.00025618,2]
[345356479,1734180640586,-226.923,0.0002566,2]
[345356480,1734180640594,-1000.0,0.000257,2]
[345356481,1734180640604,-150.0,0.00025718,4]
[345356482,1734180640616,-150.0,0.00025718,4]
[345356483,1734180640625,-150.59129191,0.00025718,4]
[345356484,1734180640634,-150.39171893,0.00025718,4]
[345356485,1734180640643,-151.3551902,0.00025718,4]
[345356486,1734180640651,-150.0,0.00025718,4]
[345356487,1734180640660,-150.99,0.00025786,2]
[345356488,1734180640669,-176.0,0.0002589,2]
[345356489,1734180640678,-177.0,0.0002589,2]
[345356490,1734180640686,-88864.6184,0.000259,2]
[345356491,1734180640695,-47295.11086825,0.00025922,2]
[345356492,1734180640704,-150.0,0.00025928,120]
[345356493,1734180640713,-292.84,0.00025994,2]
[345356494,1734180640721,-500.0,0.00025998,3]
[345356495,1734180640730,-536.54831356,0.00025998,3]
[345356496,1734180640739,-500.0,0.00025998,3]
[345356497,1734180640748,-500.0,0.00025998,3]
[345356498,1734180640757,-500.0,0.00025998,3]
[345356499,1734180640771,-319.2750025,0.00025998,3]
[345356500,1734180640780,-500.0,0.00025998,3]
[345356501,1734180640789,-500.0,0.00025998,3]
[345356502,1734180640799,-153.136458,0.00025998,3]
[345356503,1734180640808,-880.56,0.00025998,3]
[345356504,1734180640817,-500.0,0.00025998,3]
[345356505,1734180640826,-559.40262525,0.00025998,3]
[345356506,1734180640835,-500.0,0.00025998,3]
[345356507,1734180640844,-500.0,0.00025998,3]
[345356508,1734180640853,-500.0,0.00025998,3]
[345356509,1734180640862,-500.0,0.00025998,3]
[345356510,1734180640871,-500.0,0.00025998,3]
[345356511,1734180640880,-500.0,0.00025998,3]
[345356512,1734180640889,-500.0,0.00025998,3]
[345356513,1734180640898,-500.0,0.00025998,3]
[345356514,1734180640907,-500.0,0.00025998,3]
[345356515,1734180640916,-500.0,0.00025998,3]
[345356516,1734180640925,-500.0,0.00025998,3]
[345356517,1734180640934,-500.0,0.00025998,3]
[345356518,1734180640943,-500.0,0.00025998,3]
[345356519,1734180640951,-500.0,0.00025998,3]
[345356520,1734180640960,-500.0,0.00025998,3]
[345356521,1734180640969,-268.56,0.00025998,3]
[345356522,1734180640978,-500.0,0.00025998,3]
[345356523,1734180640987,-621.47,0.00025998,3]
[345356524,1734180640996,-502.40834536,0.00025998,3]
[345356525,1734180641005,-500.0,0.00025998,3]
[345356526,1734180641022,-500.0,0.00025998,3]
[345356527,1734180641031,-500.0,0.00025998,3]
[345356528,1734180641040,-500.0,0.00025998,3]
[345356529,1734180641049,-517.43,0.00025998,3]
[345356530,1734180641059,-368.35499189,0.00025998,3]
[345356531,1734180641068,-500.0,0.00025998,3]
[345356532,1734180641077,-500.0,0.00025998,3]
[345356533,1734180641086,-500.0,0.00025998,3]
[345356534,1734180641095,-500.0,0.00025998,3]
[345356535,1734180641104,-500.0,0.00025998,3]
[345356536,1734180641113,-500.0,0.00025998,3]
[345356537,1734180641122,-500.0,0.00025998,3]
[345356538,1734180641131,-500.0,0.00025998,3]
[345356539,1734180641140,-336.1,0.00025998,3]
[345356540,1734180641149,-500.0,0.00025998,3]
[345356541,1734180641159,-500.0,0.00025999,3]
[345356542,1734180641167,-500.0,0.00025999,3]
[345356543,1734180641177,-500.0,0.00025999,3]
[345356544,1734180641186,-275.5351177,0.00025999,3]
[345356545,1734180641195,-500.0,0.00025999,3]
[345356546,1734180641203,-500.0,0.00025999,3]
[345356547,1734180641213,-500.0,0.00025999,3]
[345356548,1734180641222,-500.0,0.00025999,3]
[345356549,1734180641231,-500.0,0.00025999,3]
[345356550,1734180641239,-500.0,0.00025999,3]
[345356551,1734180641248,-500.0,0.00025999,3]
[345356552,1734180641257,-500.0,0.00025999,3]
[345356553,1734180641269,-510.21649714,0.00025999,3]
[345356554,1734180641278,-185.96038598,0.00025999,3]
[345356555,1734180641287,-198.35248845,0.00025999,3]
[345356556,1734180641296,-500.0,0.00025999,3]
[345356557,1734180641305,-500.0,0.00025999,3]
[345356558,1734180641314,-500.0,0.00025999,3]
[345356559,1734180641324,-609.45,0.00025999,3]
[345356560,1734180641333,-500.0,0.00025999,3]
[345356561,1734180641343,-3600.0,0.00026,27]
[345356562,1734180641352,-37500.0,0.00026,2]
[345356563,1734180641360,-500.0,0.00026,120]
[345356564,1734180641370,-883775.92139692,0.00026,2]
[345356565,1734180641379,-176.34215265,0.00026033,2]
[345356566,1734180641388,-1000.0,0.00026166,2]
[345356567,1734180641397,-428.15146824,0.00026438,2]
[345356568,1734180641406,-176.34215265,0.00026656,2]
[345356569,1734180641414,-906.3176,0.00026679,2]
[345356570,1734180641423,-656.06634,0.0002674,2]
[345356571,1734180641432,-1500.0,0.00026781,2]
[345356572,1734180641441,-428.15146824,0.00026814,2]
[345356573,1734180641450,-292.84,0.00026859,2]
[345356574,1734180641459,-1500.0,0.00026874,2]
[345356575,1734180641468,-157.6423576,0.00026922,10]
[345356576,1734180641477,-9680.0,0.00026986,2]
[345356577,1734180641486,-276.58,0.0002699,30]
[345356578,1734180641495,-19098.10367424,0.00026998,120]
[345356579,1734180641504,-21179.7894474,0.00026998,120]
[345356580,1734180641515,-500.0,0.00026999,3]
[345356581,1734180641525,-500.0,0.00026999,3]
[345356582,1734180641534,-500.0,0.00026999,3]
[345356583,1734180641543,-296.54711807,0.00026999,3]
[345356584,1734180641552,-517.09,0.00026999,3]
[345356585,1734180641560,-500.0,0.00026999,3]
[345356586,1734180641570,-500.0,0.00026999,3]
[345356587,1734180641579,-500.0,0.00026999,3]
[345356588,1734180641587,-150.5,0.00027,30]
[345356589,1734180641596,-37500.0,0.00027,2]
[345356590,1734180641607,-34447.0,0.00027,30]
[345356591,1734180641618,-275.23,0.00027009,3]
[345356592,1734180641627,-500.0,0.00027009,3]
[345356593,1734180641636,-500.0,0.00027009,3]
[345356594,1734180641645,-508.07,0.00027009,3]
[345356595,1734180641655,-199.68,0.00027009,3]
[345356596,1734180641664,-500.0,0.00027009,3]
[345356597,1734180641673,-500.0,0.00027009,3]
[345356598,1734180641683,-500.0,0.00027009,3]
[345356599,1734180641692,-500.0,0.00027009,3]
[345356600,1734180641702,-404.51,0.00027009,3]
[345356601,1734180641711,-500.0,0.00027009,3]
[345356602,1734180641720,-500.0,0.00027009,3]
[345356603,1734180641728,-500.0,0.00027009,3]
[345356604,1734180641738,-500.0,0.00027009,3]
[345356605,1734180641747,-600.0,0.00027009,3]
[345356606,1734180641757,-541.6154379,0.00027009,3]
[345356607,1734180641770,-500.0,0.00027009,3]
[345356608,1734180641779,-501.17,0.00027009,3]
[345356609,1734180641789,-880.56,0.00027009,3]
[345356610,1734180641798,-880.56,0.00027009,3]
[345356611,1734180641806,-880.56,0.00027009,3]
[345356612,1734180641815,-880.56,0.00027009,3]
[345356613,1734180641824,-880.56,0.00027009,3]
[345356614,1734180641833,-880.56,0.00027009,3]
[345356615,1734180641843,-880.56,0.00027009,3]
[345356616,1734180641852,-880.56,0.00027009,3]
[345356617,1734180641861,-880.56,0.00027009,3]
[345356618,1734180641870,-880.56,0.00027009,3]
[345356619,1734180641879,-880.56,0.00027009,3]
[345356620,1734180641888,-880.56,0.00027009,3]
[345356621,1734180641897,-880.56,0.00027009,3]
[345356622,1734180641906,-880.56,0.00027009,3]
[345356623,1734180641915,-500.0,0.00027009,3]
[345356624,1734180641924,-500.0,0.00027009,3]
[345356625,1734180641934,-453.62,0.00027009,3]
[345356626,1734180641943,-500.0,0.00027009,3]
[345356627,1734180641952,-500.0,0.00027009,3]
[345356628,1734180641961,-500.0,0.00027009,3]
[345356629,1734180641971,-500.0,0.00027009,3]
[345356630,1734180641980,-500.0,0.00027009,3]
[345356631,1734180641989,-500.0,0.00027009,3]
[345356632,1734180641999,-500.0,0.00027009,3]
[345356633,1734180642008,-500.0,0.00027009,3]
[345356634,1734180642021,-500.0,0.00027009,3]
[345356635,1734180642030,-500.0,0.00027009,3]
[345356636,1734180642040,-500.0,0.00027009,3]
[345356637,1734180642049,-500.0,0.00027009,3]
[345356638,1734180642058,-500.0,0.00027009,3]
[345356639,1734180642067,-500.0,0.00027009,3]
[345356640,1734180642077,-500.0,0.00027009,3]
[345356641,1734180642088,-500.0,0.00027009,3]
[345356642,1734180642097,-500.0,0.00027009,3]
[345356643,1734180642106,-500.0,0.00027009,3]
[345356644,1734180642116,-500.0,0.00027009,3]
[345356645,1734180642125,-500.0,0.00027009,3]
[345356646,1734180642134,-500.0,0.00027009,3]
[345356647,1734180642143,-500.0,0.00027009,3]
[345356648,1734180642154,-500.0,0.00027009,3]
[345356649,1734180642163,-500.0,0.00027009,3]
[345356650,1734180642172,-500.0,0.00027009,3]
[345356651,1734180642182,-500.0,0.00027009,3]
[345356652,1734180642192,-500.0,0.00027009,3]
[345356653,1734180642201,-500.0,0.00027009,3]
[345356654,1734180642210,-500.0,0.00027009,3]
[345356655,1734180642220,-500.0,0.00027009,3]
[345356656,1734180642229,-500.0,0.00027009,3]
[345356657,1734180642238,-500.0,0.00027009,3]
[345356658,1734180642247,-500.0,0.00027009,3]
[345356659,1734180642256,-500.0,0.00027009,3]
[345356660,1734180642267,-500.0,0.00027009,3]
[345356661,1734180642276,-463.47,0.00027009,3]
[345356662,1734180642285,-500.0,0.00027009,3]
[345356663,1734180642294,-500.0,0.00027009,3]
[345356664,1734180642303,-517.09,0.00027009,3]
[345356665,1734180642312,-517.09,0.00027009,3]
[345356666,1734180642321,-517.09,0.00027009,3]
[345356667,1734180642331,-517.09,0.00027009,3]
[345356668,1734180642339,-517.09,0.00027009,3]
[345356669,1734180642348,-517.09,0.00027009,3]
[345356670,1734180642358,-517.09,0.00027009,3]
[345356671,1734180642367,-517.09,0.00027009,3]
[345356672,1734180642376,-517.09,0.00027009,3]
[345356673,1734180642385,-517.09,0.00027009,3]
[345356674,1734180642394,-517.09,0.00027009,3]
[345356675,1734180642403,-517.09,0.00027009,3]
[345356676,1734180642412,-517.09,0.00027009,3]
[345356677,1734180642421,-500.0,0.00027009,3]
[345356678,1734180642430,-611.75,0.00027009,3]
[345356679,1734180642439,-4477.0525154,0.00027009,2]
[345356680,1734180642448,-500.0,0.00027009,3]
[345356681,1734180642457,-500.0,0.00027009,3]
[345356682,1734180642466,-500.0,0.00027009,3]
[345356683,1734180642475,-500.0,0.00027009,3]
[345356684,1734180642484,-217.94,0.00027009,3]
[345356685,1734180642493,-500.0,0.00027009,3]
[345356686,1734180642503,-2235.1649189,0.00027009,2]
[345356687,1734180642512,-500.0,0.00027009,3]
[345356688,1734180642527,-500.0,0.00027009,3]
[345356689,1734180642537,-500.0,0.00027009,3]
[345356690,1734180642546,-500.0,0.00027009,3]
[345356691,1734180642555,-500.0,0.00027009,3]
[345356693,1734180642564,-500.0,0.00027009,3]
[345356694,1734180642573,-500.0,0.00027009,3]
[345356695,1734180642582,-500.0,0.00027009,3]
[345356696,1734180642591,-500.0,0.00027009,3]
[345356697,1734180642599,-500.0,0.00027009,3]
[345356698,1734180642611,-500.0,0.00027009,3]
[345356699,1734180642620,-495.66,0.00027009,3]
[345356700,1734180642629,-500.0,0.00027009,3]
[345356701,1734180642638,-500.0,0.00027009,3]
[345356702,1734180642647,-500.0,0.00027009,3]
[345356703,1734180642656,-559.39,0.00027009,3]
[345356704,1734180642665,-500.0,0.00027009,3]
[345356705,1734180642675,-500.0,0.00027009,3]
[345356706,1734180642684,-500.0,0.00027009,3]
[345356707,1734180642693,-2000.0,0.00027009,2]
[345356708,1734180642703,-500.0,0.00027009,3]
[345356709,1734180642711,-500.0,0.00027009,3]
[345356710,1734180642720,-2000.0,0.00027009,2]
[345356711,1734180642730,-500.0,0.00027009,3]
[345356712,1734180642738,-500.0,0.00027009,3]
[345356713,1734180642747,-500.0,0.00027009,3]
[345356714,1734180642757,-500.0,0.00027009,3]
[345356715,1734180642769,-512.22266386,0.00027009,3]
[345356716,1734180642778,-500.0,0.00027009,3]
[345356717,1734180642787,-500.0,0.00027009,3]
[345356718,1734180642796,-444.82,0.00027009,3]
[345356719,1734180642805,-630.0,0.0002701,2]
[345356720,1734180642814,-1366299.54294708,0.0002701,2]
[345356721,1734180642949,-143100.29008177,0.0002701,2]
[345356722,1734180642988,-156.463,0.00021826,2]
[345356723,1734180642998,-1200.0,0.000247,2]
[345356724,1734180643007,-485.26436386,0.00027009,3]
[345356725,1734180643023,-14.73563614,0.00027009,3]
[345356726,1734180643032,-500.0,0.00027009,3]
[345356727,1734180643041,-198.54179165,0.0002701,2]
[345356728,1734180643051,-5405.45253584,0.0002701,2]
[345356736,1734180643174,-1304.252071,0.0002701,2]
[345356738,1734180643189,-500.0,0.00024999,3]
[345356740,1734180643198,-2797.12936361,0.0002701,2]
[345356742,1734180643209,-1086.00001,0.0002701,2]
[345356745,1734180643223,-4794.38453239,0.0002701,2]
[345356747,1734180643234,-5766.6013915,0.0002701,2]
[345356750,1734180643245,-3918.54212,0.0002701,2]
[345356752,1734180643265,-347.63423686,0.00026999,3]
[345356759,1734180643329,-2674.23132559,0.00020448,2]
[345356760,1734180643338,-500.0,0.00021249,3]
[345356761,1734180643347,-500.0,0.00025999,3]
[345356762,1734180643357,-152.36576314,0.00026999,3]
[345356763,1734180643366,-500.0,0.00027009,3]
[345356764,1734180643375,-500.0,0.00027009,3]
[345356765,1734180643383,-6902.65984274,0.0002701,2]
[345356766,1734180643405,-700566.2248668,0.0002701,2]
[345356767,1734180643415,-615.95419268,0.0002701,2]
[345356769,1734180643426,-33758.1321267,0.0002701,2]
[345356770,1734180643436,-641.34335888,0.0002701,2]
[345356773,1734180643448,-2419.999578,0.0002701,2]
[345356827,1734180645677,-438.66347638,0.00021249,3]
[345356828,1734180645734,-61.33652362,0.00021249,3]
[345356829,1734180645744,-151.793,0.00021826,2]
[345356830,1734180645753,-181.59047638,0.000255,2]
[345356831,1734180645792,-318.40952362,0.000255,2]
[345356832,1734180645802,-1027.7715276,0.00026048,2]
[345356833,1734180645811,-150.0,0.00026741,2]
[345356834,1734180645820,-150.0,0.0002675,2]
[345356835,1734180645830,-150.0,0.00026754,2]
[345356836,1734180645839,-150.0,0.0002679,2]
[345356837,1734180645848,-150.0,0.00026794,2]
[345356838,1734180645857,-150.0,0.00026842,2]
[345356839,1734180645866,-150.0,0.00026858,2]
[345356840,1734180645875,-150.0,0.00026884,2]
[345356841,1734180645884,-150.0,0.00026905,2]
[345356842,1734180645894,-150.0,0.00026906,2]
[345356843,1734180645903,-150.0,0.00026915,2]
[345356844,1734180645914,-150.0,0.00026926,2]
[345356845,1734180645923,-11.14184051,0.00026943,2]
[345356846,1734180645936,-138.85815949,0.00026943,2]
[345356847,1734180645946,-150.0,0.00026959,2]
[345356848,1734180645956,-150.0,0.00026979,2]
[345356849,1734180645965,-150.0,0.0002699,2]
[345356850,1734180645974,-150.0,0.00027009,2]
[345356851,1734180645985,-500.0,0.00027009,3]
[345356852,1734180645994,-500.0,0.00027009,3]
[345356853,1734180646003,-500.0,0.00027009,3]
[345356854,1734180646012,-500.0,0.00027009,3]
[345356855,1734180646024,-500.0,0.00027009,3]
[345356856,1734180646034,-3283.40457892,0.0002701,2]
[345356857,1734180646340,-1193.83822998,0.0002701,2]
[345356858,1734180646351,-402.52999,0.0002701,2]
[345356859,1734180646362,-352.29130981,0.0002701,2]
[345356860,1734180646373,-1000.22877641,0.0002701,2]
[345356861,1734180728743,152.557963,0.00017533,2]
[345356862,1734180734513,163.597801,0.00017533,2]
[345356863,1734180735028,170.332423,0.00017533,2]
[345356864,1734180735341,170.332423,0.00018903,2]
[345356867,1734181257115,317.29,0.00010137,2]
[345356872,1734181634138,-450.0,0.00013,2]
[345356873,1734181634160,-159.64105617,0.00013599,2]
[345356874,1734181654137,-825.17762514,0.00013599,2]
[345356875,1734181654163,-152.12,0.00013699,2]
[345356876,1734181654185,-165.78872406,0.000149,2]
[345356877,1734181654209,-500.0,0.00015,2]
[345356878,1734181654232,-150.0,0.00016187,2]
[345356879,1734181654257,-175.63,0.00016328,2]
[345356880,1734181654281,-317.29,0.00016813,2]
[345356881,1734181654303,-1061.515418,0.00017908,2]
[345356882,1734181654325,-300.0,0.00017999,2]
[345356883,1734181654347,-3703.01139572,0.00018,2]
[345356884,1734181753107,-505.29394456,0.00018,2]
[345356885,1734181770113,-5791.69465972,0.00018,2]
[345356886,1734181770133,-1239.91,0.00018108,2]
[345356893,1734181832119,-641.40470021,0.00019178,5]
[345356894,1734181832128,-220.31529979,0.00019338,2]
[345356895,1734181835721,-79.68470021,0.00019338,2]
[345356896,1734181835731,-12910.85,0.00019339,2]
[345356897,1734181835740,-165.78872405,0.00019518,2]
[345356898,1734181835749,-454.53,0.00019618,2]
[345356899,1734181835758,-938.65,0.0001979,2]
[345356900,1734181835771,-160.7,0.0001981,2]
[345356901,1734181835781,-291.56,0.00019848,2]
[345356902,1734181835790,-250.0,0.00019848,2]
[345356903,1734181835799,-2496.0,0.000199,2]
[345356904,1734181835809,-150.0,0.00019941,2]
[345356905,1734181835818,-153.0,0.00019942,2]
[345356906,1734181835828,-153.0,0.00019942,2]
[345356907,1734181835837,-153.0,0.00019942,2]
[345356908,1734181835847,-153.0,0.00019942,2]
[345356909,1734181835856,-153.0,0.00019942,2]
[345356910,1734181835865,-153.0,0.00019942,2]
[345356911,1734181835875,-153.0,0.00019942,2]
[345356912,1734181835884,-153.0,0.00019942,2]
[345356913,1734181835893,-153.0,0.00019942,2]
[345356914,1734181835905,-153.0,0.00019942,2]
[345356923,1734181836075,-153.0,0.00019942,2]
[345356925,1734181836084,-153.0,0.00019942,2]
[345356927,1734181836093,-153.0,0.00019942,2]
[345356929,1734181836102,-153.0,0.00019942,2]
[345356931,1734181836111,-153.0,0.00019942,2]
[345356933,1734181836120,-153.0,0.00019942,2]
[345356935,1734181836129,-153.0,0.00019942,2]
[345356936,1734181836138,-153.0,0.00019942,2]
[345356938,1734181836146,-153.0,0.00019942,2]
[345356942,1734181836166,-153.0,0.00019942,2]
[345356945,1734181836175,-153.0,0.00019942,2]
[345356946,1734181836184,-153.0,0.00019942,2]
[345356948,1734181836193,-153.0,0.00019942,2]
[345356950,1734181836202,-153.0,0.00019942,2]
[345356952,1734181836211,-153.0,0.00019942,2]
[345356954,1734181836220,-153.0,0.00019942,2]
[345356956,1734181836229,-153.0,0.00019942,2]
[345356958,1734181836238,-153.0,0.00019942,2]
[345356960,1734181836247,-153.0,0.00019942,2]
[345356962,1734181836256,-153.0,0.00019942,2]
[345356964,1734181836265,-153.0,0.00019942,2]
[345356966,1734181836274,-153.0,0.00019942,2]
[345356968,1734181836283,-153.0,0.00019942,2]
[345356970,1734181836292,-153.0,0.00019942,2]
[345356972,1734181836301,-153.0,0.00019942,2]
[345356974,1734181836311,-153.0,0.00019942,2]
[345356976,1734181836320,-153.0,0.00019942,2]
[345356978,1734181836329,-153.0,0.00019942,2]
[345356980,1734181836338,-153.0,0.00019942,2]
[345356982,1734181836347,-153.0,0.00019942,2]
[345356984,1734181836357,-153.0,0.00019942,2]
[345356986,1734181836366,-153.0,0.00019942,2]
[345356988,1734181836375,-153.0,0.00019942,2]
[345356990,1734181836385,-153.0,0.00019942,2]
[345356992,1734181836398,-153.0,0.00019942,2]
[345356994,1734181836413,-2541.47,0.00019973,2]
[345356996,1734181836421,-1146.67844877,0.0002,5]
[345356998,1734181836434,-471.32155123,0.0002,5]
[345357000,1734181836443,-393.39757229,0.0002,2]
[345357001,1734181836466,-676.2056141,0.0002,2]
[345357002,1734181836475,-299.45,0.00020019,2]
[345357003,1734181836484,-451.1,0.0002009,2]
[345357004,1734181836494,-189.54,0.00020104,2]
[345357005,1734181836503,-181.22,0.00020115,2]
[345357006,1734181836512,-195.14,0.00020173,2]
[345357007,1734181836521,-200.0,0.00020264,2]
[345357008,1734181836530,-1069.10580266,0.00020273,120]
[345357009,1734181836539,-12503.43489757,0.0002028,7]
[345357010,1734181836548,-1500.0,0.00020361,2]
[345357011,1734181836557,-1239.91,0.00020372,2]
[345357013,1734181836566,-1525.01,0.0002041,2]
[345357015,1734181836576,-1657.68829868,0.0002041,2]
[345357017,1734181836587,-1691.25170132,0.0002041,2]
[345357019,1734181836597,-250.0,0.0002041,2]
[345357021,1734181836607,-200.0,0.0002041,2]
[345357023,1734181836616,-1000.0,0.0002041,2]
[345357025,1734181836625,-500.0,0.00020435,2]
[345357027,1734181836634,-1256.467,0.00020715,2]
[345357029,1734181836643,-3765.0,0.00020715,2]
[345357031,1734181836655,-817.0,0.00020715,2]
[345357033,1734181836664,-3630.0,0.00020715,2]
[345357035,1734181836673,-930.0,0.00020715,2]
[345357037,1734181836682,-535.0,0.00020715,2]
[345357039,1734181836691,-189.54,0.00020848,2]
[345357041,1734181836701,-634.11178365,0.00020887,5]
[345357043,1734181836710,-200.0,0.00020891,5]
[345357045,1734181836719,-695.16642828,0.00020891,5]